bitfinex/quotes_BTCUSD_20240911
["timestamp","ask_amount","ask_price","bid_price","bid_amount"]
[1726013994869,0.027431,57634.0,57633.0,0.35243527]
[1726013995094,0.021431,57634.0,57633.0,0.35243527]
[1726013995336,0.022431,57634.0,57633.0,0.36243527]
[1726013995584,0.022431,57634.0,57633.0,0.35343527]
[1726013995844,0.023431,57634.0,57633.0,0.36743527]
[1726013996769,0.023431,57634.0,57633.0,0.39643527]
[1726013997001,0.023431,57634.0,57633.0,0.41943527]
[1726013997226,0.024431,57634.0,57633.0,0.42143527]
[1726013998161,0.024431,57634.0,57633.0,0.332851]
[1726014001142,0.024431,57634.0,57633.0,0.09904]
[1726014001367,0.024431,57634.0,57633.0,0.01764]
[1726014001368,0.35116384,57634.0,57633.0,0.01764]
[1726014001597,0.75928084,57634.0,57633.0,0.01764]
[1726014002577,0.75728084,57634.0,57633.0,0.00364]
[1726014003011,0.75728084,57634.0,57633.0,0.00464]
[1726014003465,0.40926384,57634.0,57633.0,0.00264]
[1726014003920,0.75728084,57634.0,57633.0,0.00264]
[1726014004152,0.91856529,57634.0,57633.0,0.00264]
[1726014004413,0.91756529,57634.0,57633.0,0.00264]
[1726014004653,0.92556529,57634.0,57633.0,0.00264]
[1726014004879,0.92556529,57634.0,57633.0,0.00164]
[1726014005110,0.92056529,57634.0,57633.0,0.00164]
[1726014005568,0.92556529,57634.0,57633.0,0.00164]
[1726014005793,0.92556529,57634.0,57633.0,0.00264]
[1726014006792,0.57854829,57634.0,57633.0,0.00264]
[1726014007016,0.40504029,57634.0,57633.0,0.00264]
[1726014007239,0.18265584,57634.0,57633.0,0.00264]
[1726014007471,0.18265584,57634.0,57633.0,0.02702485]
[1726014008113,0.18265584,57634.0,57633.0,0.00164]
[1726014008114,0.34816384,57634.0,57633.0,0.00164]
[1726014008336,0.35116384,57634.0,57633.0,0.00464]
[1726014009203,0.35116384,57634.0,57633.0,0.00164]
[1726014009420,0.35116384,57634.0,57633.0,0.00464]
[1726014009882,0.34816384,57634.0,57633.0,0.00164]
[1726014010117,0.35116384,57634.0,57633.0,0.00464]
[1726014010564,0.34816384,57634.0,57633.0,0.00464]
[1726014010807,0.17765584,57634.0,57633.0,0.02922555]
[1726014011026,0.024431,57634.0,57633.0,0.317351]
[1726014013863,0.024431,57634.0,57633.0,0.3208208]
[1726014014590,0.024431,57634.0,57633.0,0.317351]
[1726014016181,0.024431,57634.0,57633.0,0.32082071]
[1726014016400,0.024431,57634.0,57633.0,0.35333233]
[1726014017505,0.024431,57634.0,57633.0,0.34986262]
[1726014018845,0.024431,57634.0,57633.0,0.317351]
[1726014019333,0.024431,57634.0,57633.0,0.178151]
[1726014023577,0.024431,57634.0,57633.0,0.00464]
[1726014023821,0.35922345,57634.0,57633.0,0.00464]
[1726014024046,0.77024045,57634.0,57633.0,0.00464]
[1726014024263,1.27048229,57634.0,57633.0,0.00464]
[1726014028376,0.85946529,57634.0,57633.0,0.00464]
[1726014028861,1.27208229,57634.0,57633.0,0.00464]
[1726014034310,1.20756537,57634.0,57633.0,0.00464]
[1726014037941,1.11079784,57634.0,57633.0,0.00464]
[1726014038169,1.20756537,57634.0,57633.0,0.00464]
[1726014038418,0.79494837,57634.0,57633.0,0.00464]
[1726014038691,1.14196537,57634.0,57633.0,0.00464]
[1726014039167,0.79494837,57634.0,57633.0,0.00464]
[1726014039390,1.14196537,57634.0,57633.0,0.00464]
[1726014039619,0.79494837,57634.0,57633.0,0.00464]
[1726014040807,0.024431,57634.0,57633.0,0.00464]
[1726014041025,0.197939,57634.0,57633.0,0.00464]
[1726014041256,0.197939,57634.0,57633.0,0.01929028]
[1726014041443,0.197939,57634.0,57633.0,0.00464]
[1726014041688,0.197939,57634.0,57633.0,0.01929028]
[1726014041919,0.197939,57634.0,57633.0,0.03063048]
[1726014042144,0.024431,57634.0,57633.0,0.26694148]
[1726014042620,0.024431,57634.0,57633.0,0.28159176]
[1726014043088,0.024431,57634.0,57633.0,0.25560128]
[1726014044042,0.024431,57634.0,57633.0,0.01929028]
[1726014048995,0.024431,57634.0,57633.0,0.19280128]
[1726014049458,0.024431,57634.0,57633.0,0.01929028]
[1726014050803,0.024431,57634.0,57633.0,0.19280128]
[1726014051027,0.024431,57634.0,57633.0,0.21882096]
[1726014051762,0.024431,57634.0,57633.0,0.3609907]
[1726014051991,0.024431,57634.0,57633.0,0.3839907]
[1726014052465,0.024431,57634.0,57633.0,0.3809907]
[1726014052702,0.025431,57634.0,57633.0,0.3899907]
[1726014052928,0.022431,57634.0,57633.0,0.38652096]
[1726014053162,0.022431,57634.0,57633.0,0.38852096]
[1726014053417,0.022431,57634.0,57633.0,0.36250128]
[1726014053636,0.022431,57634.0,57633.0,0.36050128]
[1726014054107,0.023431,57634.0,57633.0,0.36250128]
[1726014054329,0.023431,57634.0,57633.0,0.36597092]
[1726014054546,0.022431,57634.0,57633.0,0.35697092]
[1726014054996,0.022431,57634.0,57633.0,0.36897092]
[1726014056809,0.022431,57634.0,57633.0,0.40929756]
[1726014058407,0.022431,57634.0,57633.0,0.43929756]
[1726014059995,0.022431,57634.0,57633.0,0.44129756]
[1726014060440,0.022431,57634.0,57633.0,0.40582792]
[1726014060653,0.11919853,57634.0,57633.0,0.34250128]
[1726014060935,0.11919853,57634.0,57633.0,0.20380128]
[1726014061164,0.11919853,57634.0,57633.0,0.03029028]
[1726014061165,0.35580653,57634.0,57633.0,0.03029028]
[1726014061382,0.35580653,57634.0,57633.0,0.01564]
[1726014061627,0.35580653,57634.0,57633.0,0.03021223]
[1726014061628,0.70282353,57634.0,57633.0,0.03021223]
[1726014061850,0.35580653,57634.0,57633.0,0.03021223]
[1726014062072,0.35580653,57634.0,57633.0,0.01564]
[1726014062073,0.18229853,57634.0,57633.0,0.01564]
[1726014062555,0.18229853,57634.0,57633.0,0.03017211]
[1726014064139,0.2468103,57634.0,57633.0,0.01564]
[1726014064425,0.4203183,57634.0,57633.0,0.01564]
[1726014064637,0.2468103,57634.0,57633.0,0.01564]
[1726014064855,0.4203183,57634.0,57633.0,0.01564]
[1726014067135,0.2468103,57634.0,57633.0,0.01564]
[1726014067596,1.26757714,57634.0,57633.0,0.01564]
[1726014078512,1.61459414,57634.0,57633.0,0.01564]
[1726014086200,1.55010052,57634.0,57633.0,0.01564]
[1726014088048,1.55010052,57634.0,57633.0,0.00364]
[1726014088474,1.55210052,57634.0,57633.0,0.00164]
[1726014088914,1.55610052,57634.0,57633.0,0.00164]
[1726014089124,1.55910052,57634.0,57633.0,0.00164]
[1726014089337,1.54910052,57634.0,57633.0,0.00164]
[1726014089547,1.55610052,57634.0,57633.0,0.00164]
[1726014089840,1.55810052,57634.0,57633.0,0.00164]
[1726014090046,1.55610052,57634.0,57633.0,0.00164]
[1726014090706,1.54910052,57634.0,57633.0,0.00164]
[1726014091346,1.62974284,57634.0,57633.0,0.00164]
[1726014091551,1.54910052,57634.0,57633.0,0.00164]
[1726014091771,1.7036828,57634.0,57633.0,0.00164]
[1726014092006,1.7136828,57634.0,57633.0,0.00164]
[1726014092223,1.6101597,57634.0,57633.0,0.00164]
[1726014092437,1.6021597,57634.0,57633.0,0.00164]
[1726014092652,1.6091597,57634.0,57633.0,0.00164]
[1726014092865,1.9561767,57634.0,57633.0,0.00164]
[1726014093521,2.03376149,57634.0,57633.0,0.00164]
[1726014095025,1.68674449,57634.0,57633.0,0.00164]
[1726014096623,0.173517,57631.0,57630.0,0.0025575]
[1726014096827,0.84755852,57631.0,57630.0,0.0025575]
[1726014097057,1.69012236,57631.0,57630.0,0.0025575]
[1726014097276,1.63906318,57631.0,57630.0,0.0025575]
[1726014097482,1.69011601,57631.0,57630.0,0.0025575]
[1726014097698,1.63840785,57631.0,57630.0,0.0025575]
[1726014097912,1.69011647,57631.0,57630.0,0.0025575]
[1726014098119,1.69011647,57631.0,57630.0,0.0045575]
[1726014098324,1.69011629,57631.0,57630.0,0.0045575]
[1726014099207,0.54625002,57631.0,57630.0,0.0045575]
[1726014099433,0.79728502,57631.0,57630.0,0.0838575]
[1726014099637,0.79728502,57631.0,57630.0,0.13084391]
[1726014100083,0.79328502,57631.0,57630.0,0.11613661]
[1726014100287,0.79328502,57631.0,57630.0,0.0838575]
[1726014100544,0.79928502,57631.0,57630.0,0.0985648]
[1726014100785,0.79328502,57631.0,57630.0,0.0985648]
[1726014101230,0.79728502,57631.0,57630.0,0.0985648]
[1726014101444,0.79728502,57631.0,57630.0,0.0965648]
[1726014102604,0.17994734,57631.0,57630.0,0.0985648]
[1726014102791,0.45025002,57631.0,57630.0,0.0965648]
[1726014103037,0.44625002,57631.0,57630.0,0.0982028]
[1726014103272,0.27673302,57631.0,57630.0,0.0982028]
[1726014103705,0.29657357,57631.0,57630.0,0.0982028]
[1726014103947,0.29257357,57631.0,57630.0,0.0834955]
[1726014104161,0.29557357,57631.0,57630.0,0.0854955]
[1726014104386,0.29557357,57631.0,57630.0,0.0834955]
[1726014104614,0.12205657,57631.0,57630.0,0.0834955]
[1726014104822,0.02527089,57631.0,57630.0,0.1585028]
[1726014105045,0.02527089,57631.0,57630.0,0.34809324]
[1726014105266,0.02527089,57631.0,57630.0,0.35109324]
[1726014107658,0.02527089,57631.0,57630.0,0.34809324]
[1726014107866,0.02527089,57631.0,57630.0,0.35109324]
[1726014108299,0.02527089,57631.0,57630.0,0.34809324]
[1726014108518,0.02527089,57631.0,57630.0,0.36009324]
[1726014108735,0.02227089,57631.0,57630.0,0.36009324]
[1726014109020,0.00082,57639.0,57638.0,0.173496]
[1726014109243,0.00082,57639.0,57638.0,0.233796]
[1726014109476,0.00082,57639.0,57638.0,0.24835688]
[1726014110371,0.02259271,57639.0,57638.0,0.24835688]
[1726014110579,0.02559271,57639.0,57638.0,0.24835688]
[1726014110787,0.02559271,57639.0,57638.0,0.25035688]
[1726014114677,0.02559271,57639.0,57638.0,0.07686088]
[1726014116415,0.02559271,57639.0,57638.0,0.01656088]
[1726014116650,0.02559271,57639.0,57638.0,0.19005688]
[1726014116863,0.02559271,57639.0,57638.0,0.25382644]
[1726014117110,0.02559271,57639.0,57638.0,0.33142644]
[1726014117563,0.02559271,57639.0,57638.0,0.32942644]
[1726014117989,0.02559271,57639.0,57638.0,0.33642644]
[1726014117990,0.02259271,57639.0,57638.0,0.33642644]
[1726014118211,0.02259271,57639.0,57638.0,0.36606908]
[1726014118421,0.02259271,57639.0,57638.0,0.36806908]
[1726014118627,0.02259271,57639.0,57638.0,0.38006908]
[1726014118848,0.02259271,57639.0,57638.0,0.37806908]
[1726014119287,0.02359271,57639.0,57638.0,0.38006908]
[1726014121693,0.02359271,57639.0,57638.0,0.43306908]
[1726014122585,0.02359271,57639.0,57638.0,0.70779494]
[1726014123246,0.02359271,57639.0,57638.0,0.86779494]
[1726014123466,0.02359271,57639.0,57638.0,0.87924933]
[1726014123675,0.02359271,57639.0,57638.0,1.20151364]
[1726014123916,0.02359271,57639.0,57638.0,1.12347239]
[1726014124139,0.02259271,57639.0,57638.0,0.82691231]
[1726014124361,0.02359271,57639.0,57638.0,0.77199409]
[1726014124587,0.02359271,57639.0,57638.0,0.73535145]
[1726014124788,0.02359271,57639.0,57638.0,0.74935145]
[1726014125208,0.02259271,57639.0,57638.0,0.72835145]
[1726014125447,0.02359271,57639.0,57638.0,0.74935145]
[1726014125876,0.02359271,57639.0,57638.0,0.73535145]
[1726014126079,0.02359271,57639.0,57638.0,0.83154443]
[1726014126293,0.02259271,57639.0,57638.0,0.83854443]
[1726014127442,0.02259271,57639.0,57638.0,0.82454443]
[1726014127667,0.02359271,57639.0,57638.0,0.82009004]
[1726014127885,0.02359271,57639.0,57638.0,0.83409004]
[1726014128130,0.02259271,57639.0,57638.0,0.82709004]
[1726014128581,0.02359271,57639.0,57638.0,0.84809004]
[1726014128805,0.02359271,57639.0,57638.0,0.82009004]
[1726014129015,0.02259271,57639.0,57638.0,0.82709004]
[1726014129476,0.02359271,57639.0,57638.0,0.82009004]
[1726014130543,0.02259271,57639.0,57638.0,0.81309004]
[1726014130955,0.02359271,57639.0,57638.0,0.83409004]
[1726014132422,0.02259271,57639.0,57638.0,0.82709004]
[1726014132867,0.02359271,57639.0,57638.0,0.83409004]
[1726014133949,0.02359271,57639.0,57638.0,0.82009004]
[1726014134170,0.02359271,57639.0,57638.0,0.83409004]
[1726014136601,0.02359271,57639.0,57638.0,0.73789706]
[1726014136813,0.02359271,57639.0,57638.0,0.72389706]
[1726014137449,0.02359271,57639.0,57638.0,0.73789706]
[1726014137669,0.02259271,57639.0,57638.0,0.73089706]
[1726014137880,0.02359271,57639.0,57638.0,0.73789706]
[1726014138090,0.02359271,57639.0,57638.0,0.82253871]
[1726014141676,0.02359271,57639.0,57638.0,0.20905688]
[1726014142339,0.18647839,57639.0,57638.0,0.20905688]
[1726014142559,0.18647839,57639.0,57638.0,0.03556088]
[1726014142783,0.26517839,57639.0,57638.0,0.021]
[1726014143001,0.43867139,57639.0,57638.0,0.03493105]
[1726014143214,0.26517839,57639.0,57638.0,0.021]
[1726014143431,0.26517839,57639.0,57638.0,0.194496]
[1726014143664,0.16839271,57639.0,57638.0,0.2139456]
[1726014143873,0.16839271,57639.0,57638.0,0.22799237]
[1726014143874,0.02359271,57639.0,57638.0,0.22799237]
[1726014144108,0.02259271,57639.0,57638.0,0.24746151]
[1726014144601,0.02359271,57639.0,57638.0,0.21754277]
[1726014144820,0.02359271,57639.0,57638.0,0.19754277]
[1726014145043,0.02259271,57639.0,57638.0,0.19054277]
[1726014145262,0.02259271,57639.0,57638.0,0.18754277]
[1726014145481,0.02359271,57639.0,57638.0,0.20854277]
[1726014146137,0.02359271,57639.0,57638.0,0.22974399]
[1726014146787,0.02359271,57639.0,57638.0,0.21574399]
[1726014147258,0.02359271,57639.0,57638.0,0.22974399]
[1726014147480,0.02259271,57639.0,57638.0,0.20874399]
[1726014147906,0.02359271,57639.0,57638.0,0.22274399]
[1726014148106,0.02359271,57639.0,57638.0,0.21374399]
[1726014148340,0.02259271,57639.0,57638.0,0.20874399]
[1726014148635,0.02259271,57639.0,57638.0,0.21774399]
[1726014148869,0.02259271,57639.0,57638.0,0.22174399]
[1726014149115,0.02259271,57639.0,57638.0,0.20054277]
[1726014150790,0.02259271,57639.0,57638.0,0.19154277]
[1726014151025,0.02259271,57639.0,57638.0,0.18754277]
[1726014151255,0.02259271,57639.0,57638.0,0.19654277]
[1726014151482,0.02259271,57639.0,57638.0,0.20054277]
[1726014154343,0.25778571,57639.0,57638.0,0.02704677]
[1726014154753,0.60477271,57639.0,57638.0,0.013]
[1726014154958,0.173498,57638.0,57634.0,0.173508]
[1726014155175,0.173498,57638.0,57632.0,0.173512]
[1726014155176,0.16116742,57636.0,57632.0,0.173512]
[1726014155394,0.16116742,57633.0,57631.0,0.00164]
[1726014156624,0.16116742,57633.0,57631.0,0.175156]
[1726014156830,0.16116742,57633.0,57632.0,0.005]
[1726014157041,0.18230421,57633.0,57632.0,0.005]
[1726014157248,0.18230421,57633.0,57631.0,0.175156]
[1726014157458,0.18230421,57633.0,57631.0,0.179156]
[1726014157670,0.17351,57634.0,57631.0,0.179156]
[1726014157873,0.17351,57634.0,57631.0,0.175156]
[1726014158086,0.17351,57634.0,57631.0,0.00164]
[1726014158289,0.002,57633.0,57632.0,0.004]
[1726014158421,0.02402258,57633.0,57632.0,0.004]
[1726014158627,0.02202258,57633.0,57632.0,0.004]
[1726014159661,0.02202258,57633.0,57631.0,0.00164]
[1726014159865,0.02202258,57633.0,57631.0,0.00364]
[1726014160282,0.02202258,57633.0,57631.0,0.00164]
[1726014160488,0.02202258,57633.0,57632.0,0.004]
[1726014160685,0.02402258,57633.0,57632.0,0.004]
[1726014160839,0.02402258,57633.0,57631.0,0.00164]
[1726014161045,0.02202258,57633.0,57631.0,0.00164]
[1726014161269,0.02202258,57633.0,57631.0,0.00564]
[1726014161454,0.02202258,57633.0,57631.0,0.00164]
[1726014161455,0.02402258,57633.0,57631.0,0.00164]
[1726014161661,0.02402258,57633.0,57631.0,0.175156]
[1726014162946,0.02402258,57633.0,57632.0,0.004]
[1726014163171,0.02402258,57633.0,57631.0,0.175156]
[1726014163612,0.02402258,57633.0,57631.0,0.179156]
[1726014163871,0.02202258,57633.0,57631.0,0.175156]
[1726014164083,0.12077769,57633.0,57632.0,0.01793515]
[1726014164297,0.29428869,57633.0,57632.0,0.004]
[1726014164516,0.12077769,57633.0,57631.0,0.175157]
[1726014164726,0.09675511,57633.0,57631.0,0.175157]
[1726014164931,0.09875511,57633.0,57631.0,0.175157]
[1726014165343,0.09875511,57633.0,57631.0,0.19309225]
[1726014166465,0.09875511,57633.0,57631.0,0.19709225]
[1726014166875,0.09875511,57633.0,57631.0,0.19309225]
[1726014167083,0.09675511,57633.0,57631.0,0.19509225]
[1726014167719,0.09975511,57633.0,57631.0,0.19509225]
[1726014167924,0.09975511,57633.0,57632.0,0.01992878]
[1726014168129,0.12067188,57633.0,57632.0,0.01992878]
[1726014168758,0.11767188,57633.0,57632.0,0.01992878]
[1726014169877,0.02091677,57633.0,57632.0,0.01992878]
[1726014170322,0.02391677,57633.0,57632.0,0.02192878]
[1726014173007,0.02391677,57633.0,57632.0,0.19544278]
[1726014173503,0.02391677,57633.0,57632.0,0.03608118]
[1726014173721,0.02473677,57633.0,57632.0,0.03608118]
[1726014176701,0.02473677,57633.0,57632.0,0.0161524]
[1726014176935,0.02473677,57633.0,57632.0,0.002]
[1726014177185,0.19824777,57633.0,57632.0,0.002]
[1726014183090,0.19824777,57633.0,57632.0,0.0161524]
[1726014183318,0.19824777,57633.0,57632.0,0.002]
[1726014184915,0.19824777,57633.0,57632.0,0.01614413]
[1726014187405,0.02473677,57633.0,57632.0,0.01614413]
[1726014187619,0.02473677,57633.0,57632.0,0.03569409]
[1726014188907,0.02473677,57633.0,57632.0,0.01614413]
[1726014189109,0.19824777,57633.0,57632.0,0.01614413]
[1726014189517,0.54527077,57633.0,57632.0,0.01614413]
[1726014190322,0.61137077,57633.0,57632.0,0.002]
[1726014191082,0.95839377,57633.0,57632.0,0.002]
[1726014194190,0.70812588,57633.0,57632.0,0.002]
[1726014197097,1.55554725,57633.0,57632.0,0.002]
[1726014197369,1.68422685,57633.0,57632.0,0.002]
[1726014197629,0.57528594,57633.0,57630.0,0.0041955]
[1726014197859,0.867587,57631.0,57630.0,0.0041955]
[1726014198086,1.63597163,57631.0,57630.0,0.0041955]
[1726014198320,1.61000901,57631.0,57630.0,0.0041955]
[1726014199303,1.4553393,57631.0,57630.0,0.0041955]
[1726014200245,1.53299669,57631.0,57630.0,0.0041955]
[1726014200475,1.6307518,57631.0,57630.0,0.0091955]
[1726014200716,1.6307518,57631.0,57630.0,0.0041955]
[1726014201208,1.6357518,57631.0,57630.0,0.0051955]
[1726014201432,1.73628452,57631.0,57630.0,0.0041955]
[1726014201656,2.08231952,57631.0,57630.0,0.0041955]
[1726014202124,2.08231952,57631.0,57630.0,0.0051955]
[1726014202125,2.09431952,57631.0,57630.0,0.0051955]
[1726014202625,1.73328452,57631.0,57630.0,0.0041955]
[1726014202863,1.75028452,57631.0,57630.0,0.0061955]
[1726014203104,1.75028452,57631.0,57630.0,0.0051955]
[1726014203338,1.72729364,57631.0,57630.0,0.0061955]
[1726014204158,1.70141938,57631.0,57630.0,0.0061955]
[1726014204385,1.64969441,57631.0,57630.0,0.0061955]
[1726014204606,1.72727694,57631.0,57630.0,0.0061955]
[1726014204808,1.74969441,57631.0,57630.0,0.0061955]
[1726014205011,2.20017278,57631.0,57630.0,0.0061955]
[1726014205417,1.214706,57627.0,57626.0,0.0022016]
[1726014205624,2.07718145,57627.0,57626.0,0.0022016]
[1726014205822,2.12889167,57627.0,57626.0,0.0022016]
[1726014206027,2.13089167,57627.0,57626.0,0.0022016]
[1726014206228,2.12889167,57627.0,57626.0,0.0022016]
[1726014206644,2.08918145,57627.0,57626.0,0.0032016]
[1726014206842,2.09218145,57627.0,57626.0,0.0042016]
[1726014207346,1.279953,57620.0,57619.0,0.00164]
[1726014207584,1.55373283,57620.0,57619.0,0.00164]
[1726014207794,1.45697772,57620.0,57619.0,0.00164]
[1726014207991,1.55373283,57620.0,57619.0,0.00164]
[1726014208861,1.55773283,57620.0,57619.0,0.00164]
[1726014209829,1.55773283,57620.0,57619.0,0.00264]
[1726014211148,1.56921062,57620.0,57619.0,0.00264]
[1726014214938,1.91631162,57620.0,57619.0,0.00264]
[1726014217538,1.56921062,57620.0,57619.0,0.00264]
[1726014217825,1.55773283,57620.0,57619.0,0.00264]
[1726014224111,1.31177611,57612.0,57611.0,0.0001]
[1726014224330,1.97378133,57612.0,57611.0,0.0001]
[1726014225659,1.80272622,57612.0,57611.0,0.0001]
[1726014226094,1.90648133,57612.0,57611.0,0.0001]
[1726014226735,1.55933233,57612.0,57611.0,0.0001]
[1726014227623,1.73550188,57612.0,57611.0,0.0001]
[1726014227864,1.55933233,57612.0,57611.0,0.0001]
[1726014228552,1.57081524,57612.0,57611.0,0.0001]
[1726014228777,1.46257722,57612.0,57611.0,0.0001]
[1726014229000,1.55933233,57612.0,57611.0,0.0001]
[1726014229670,1.46257722,57612.0,57611.0,0.0001]
[1726014229902,1.55933233,57612.0,57611.0,0.0001]
[1726014231434,1.46257722,57612.0,57611.0,0.0001]
[1726014231697,1.55933233,57612.0,57611.0,0.0001]
[1726014233296,1.37276411,57608.0,57607.0,0.00164]
[1726014233521,1.87707847,57608.0,57607.0,0.00164]
[1726014233731,1.89882018,57608.0,57607.0,0.00164]
[1726014234696,1.90082018,57608.0,57607.0,0.00164]
[1726014234913,1.90082018,57608.0,57607.0,0.00464]
[1726014239004,1.91225988,57608.0,57607.0,0.00464]
[1726014239714,1.04881707,57608.0,57607.0,0.00464]
[1726014239949,1.14557218,57608.0,57607.0,0.14934]
[1726014241119,0.19732871,57608.0,57607.0,0.14934]
[1726014241360,0.64125782,57608.0,57607.0,0.14934]
[1726014241829,0.12049682,57608.0,57607.0,0.33835291]
[1726014242058,0.02374171,57608.0,57607.0,0.14934]
[1726014242560,0.02374171,57608.0,57607.0,0.32293]
[1726014242809,0.02374171,57608.0,57607.0,0.14934]
[1726014243348,0.02374171,57608.0,57607.0,0.32293]
[1726014244328,0.02374171,57608.0,57607.0,0.37871191]
[1726014245305,0.02374171,57608.0,57607.0,0.34293]
[1726014245778,0.02374171,57608.0,57607.0,0.34593]
[1726014246008,0.02374171,57608.0,57607.0,0.34293]
[1726014246233,0.02274171,57608.0,57607.0,0.35393]
[1726014246459,0.02474171,57608.0,57607.0,0.34293]
[1726014246933,0.02274171,57608.0,57607.0,0.34293]
[1726014247492,0.02374171,57608.0,57607.0,0.34393]
[1726014247978,0.02374171,57608.0,57607.0,0.35493]
[1726014248964,0.02374171,57608.0,57607.0,0.39425904]
[1726014250654,0.02374171,57608.0,57607.0,0.35493]
[1726014251628,0.02374171,57608.0,57607.0,0.35840128]
[1726014251869,0.02374171,57608.0,57607.0,0.56434146]
[1726014252378,0.02374171,57608.0,57607.0,0.56634146]
[1726014252613,0.02274171,57608.0,57607.0,0.55334146]
[1726014252880,0.02274171,57608.0,57607.0,0.55234146]
[1726014252881,0.02174171,57608.0,57607.0,0.55234146]
[1726014253112,0.001,57608.0,57607.0,0.56734146]
[1726014253572,0.02156902,57610.0,57609.0,0.173583]
[1726014253790,0.00082,57611.0,57610.0,0.23638]
[1726014254226,0.02238902,57611.0,57610.0,0.23638]
[1726014254921,0.00082,57611.0,57610.0,0.23638]
[1726014255348,0.02241726,57611.0,57610.0,0.27227487]
[1726014255969,0.02241726,57611.0,57610.0,0.27927487]
[1726014256226,0.02241726,57611.0,57610.0,0.24338]
[1726014256451,0.02241726,57611.0,57610.0,0.24538]
[1726014268958,0.02241726,57611.0,57610.0,0.18258]
[1726014271583,0.54314926,57611.0,57610.0,0.009]
[1726014271809,0.95460426,57611.0,57610.0,0.009]
[1726014272027,0.95460426,57611.0,57610.0,0.01064]
[1726014272242,0.02241726,57611.0,57610.0,0.01064]
[1726014272492,0.02241726,57611.0,57610.0,0.18422]
[1726014272702,0.02241726,57611.0,57610.0,0.01064]
[1726014274216,0.02241726,57611.0,57610.0,0.18422]
[1726014274657,0.02241726,57611.0,57610.0,0.01064]
[1726014276477,0.02241726,57611.0,57610.0,0.18422]
[1726014276908,0.02241726,57611.0,57610.0,0.01064]
[1726014277795,0.08671726,57611.0,57610.0,0.01064]
[1726014278051,0.02241726,57611.0,57610.0,0.01064]
[1726014279780,0.02241726,57611.0,57610.0,0.18422]
[1726014280485,0.02241726,57611.0,57610.0,0.01064]
[1726014282400,0.29274937,57611.0,57610.0,0.01064]
[1726014282632,1.05025937,57611.0,57610.0,0.01064]
[1726014282860,0.70310437,57611.0,57610.0,0.01064]
[1726014286438,0.29274937,57611.0,57610.0,0.01064]
[1726014286687,0.29274937,57611.0,57610.0,0.18422]
[1726014286688,0.02241726,57611.0,57610.0,0.18422]
[1726014287190,0.70310437,57611.0,57610.0,0.01064]
[1726014287418,1.12585937,57611.0,57610.0,0.01064]
[1726014288138,1.62970277,57611.0,57610.0,0.01064]
[1726014288387,1.28254777,57611.0,57610.0,0.01064]
[1726014290706,1.20694777,57611.0,57610.0,0.01064]
[1726014293509,1.55410277,57611.0,57610.0,0.01064]
[1726014300998,1.39414766,57611.0,57610.0,0.01064]
[1726014301239,1.49090277,57611.0,57610.0,0.01064]
[1726014301689,0.02241726,57611.0,57610.0,0.18422]
[1726014301926,0.02241726,57611.0,57610.0,0.07674]
[1726014301927,0.19599426,57611.0,57610.0,0.07674]
[1726014302153,0.19599426,57611.0,57610.0,0.01064]
[1726014302420,0.29274937,57611.0,57610.0,0.01064]
[1726014302671,0.63990437,57611.0,57610.0,0.01064]
[1726014303639,0.11917237,57611.0,57610.0,0.01064]
[1726014305308,0.29274937,57611.0,57610.0,0.01064]
[1726014306000,0.98705937,57611.0,57610.0,0.01064]
[1726014306247,1.39741437,57611.0,57610.0,0.01064]
[1726014306480,1.55410277,57611.0,57610.0,0.01064]
[1726014308632,1.20694777,57611.0,57610.0,0.01064]
[1726014310137,0.02241726,57611.0,57610.0,0.01064]
[1726014310364,0.02241726,57611.0,57610.0,0.09154]
[1726014311261,0.02241726,57611.0,57610.0,0.29866235]
[1726014311538,0.02241726,57611.0,57610.0,0.26512]
[1726014311719,0.02241726,57611.0,57610.0,0.35422]
[1726014311927,0.02241726,57611.0,57610.0,0.35769107]
[1726014312822,0.02241726,57611.0,57610.0,0.35422]
[1726014313761,0.11917237,57611.0,57610.0,0.18422]
[1726014314015,0.11917237,57611.0,57610.0,0.01064]
[1726014316976,0.63990437,57611.0,57610.0,0.01064]
[1726014319965,0.29274937,57611.0,57610.0,0.01064]
[1726014320177,0.02241726,57611.0,57610.0,0.02948255]
[1726014320387,0.02241726,57611.0,57610.0,0.01064]
[1726014320599,0.02241726,57611.0,57610.0,0.18422]
[1726014321439,0.19599426,57611.0,57610.0,0.01064]
[1726014321874,0.02241726,57611.0,57610.0,0.01064]
[1726014322944,0.19599426,57611.0,57610.0,0.01064]
[1726014323140,0.02241726,57611.0,57610.0,0.01064]
[1726014326367,0.54314926,57611.0,57610.0,0.01064]
[1726014326628,0.19599426,57611.0,57610.0,0.01064]
[1726014328048,0.89030426,57611.0,57610.0,0.01064]
[1726014328260,0.54314926,57611.0,57610.0,0.01064]
[1726014328502,0.02241726,57611.0,57610.0,0.07504]
[1726014328975,0.19599426,57611.0,57610.0,0.07504]
[1726014329206,0.54314926,57611.0,57610.0,0.07504]
[1726014329442,0.19599426,57611.0,57610.0,0.07504]
[1726014329666,0.02241726,57611.0,57610.0,0.07504]
[1726014331553,0.02241726,57611.0,57610.0,0.24862]
[1726014331817,0.02241726,57611.0,57610.0,0.07504]
[1726014332064,0.02241726,57611.0,57610.0,0.33072]
[1726014332490,0.02241726,57611.0,57610.0,0.36755887]
[1726014333007,0.02241726,57611.0,57610.0,0.33072]
[1726014337057,0.02241726,57611.0,57610.0,0.26632]
[1726014340554,0.02241726,57611.0,57610.0,0.35372]
[1726014350582,0.02241726,57611.0,57610.0,0.20722]
[1726014351727,0.02241726,57611.0,57610.0,0.35539121]
[1726014351944,0.02241726,57611.0,57610.0,0.40251008]
[1726014352840,0.02241726,57611.0,57610.0,0.39351008]
[1726014353279,0.02341726,57611.0,57610.0,0.41251008]
[1726014353496,0.02341726,57611.0,57610.0,0.44251008]
[1726014354192,0.02341726,57611.0,57610.0,0.52672915]
[1726014354404,0.02341726,57611.0,57610.0,0.5063106]
[1726014355689,0.02341726,57611.0,57610.0,0.49460711]
[1726014356351,0.02341726,57611.0,57610.0,0.44451008]
[1726014358694,0.02341726,57611.0,57610.0,0.62045026]
[1726014358952,0.02341726,57611.0,57610.0,0.69294498]
[1726014359139,0.02341726,57611.0,57610.0,0.98676391]
[1726014359573,0.02341726,57611.0,57610.0,1.14676391]
[1726014360003,0.02241726,57611.0,57610.0,1.13876391]
[1726014360272,0.02241726,57611.0,57610.0,1.18906391]
[1726014360496,0.02341726,57611.0,57610.0,1.13576391]
[1726014360727,0.02341726,57611.0,57610.0,1.0360639]
[1726014360933,0.02341726,57611.0,57610.0,1.17278193]